bitfinex/quotes_BTCUSD_20241013
["timestamp","ask_amount","ask_price","bid_price","bid_amount"]
[1728847848262,0.10678377,62678.0,62677.0,0.385544]
[1728847848884,0.106772,62678.0,62677.0,0.385544]
[1728847855440,0.10676515,62678.0,62677.0,0.385544]
[1728847858200,0.10676515,62678.0,62677.0,0.374544]
[1728847858458,0.10676515,62678.0,62677.0,0.377544]
[1728847858893,0.10676515,62678.0,62677.0,0.385544]
[1728847859111,0.10676515,62678.0,62677.0,0.377544]
[1728847859332,0.10676515,62678.0,62677.0,0.388544]
[1728847859782,0.10676515,62678.0,62677.0,0.377544]
[1728847860005,0.10676515,62678.0,62677.0,0.391544]
[1728847862555,0.1067646,62678.0,62677.0,0.391544]
[1728847866134,0.10676657,62678.0,62677.0,0.391544]
[1728847866372,0.10676657,62678.0,62677.0,0.39653983]
[1728847867026,0.10676657,62678.0,62677.0,0.39653986]
[1728847869954,0.10677032,62678.0,62677.0,0.39653991]
[1728847870403,0.10677032,62678.0,62677.0,0.3965399]
[1728847873878,0.10677944,62678.0,62677.0,0.39653993]
[1728847880273,0.18857944,62678.0,62677.0,0.23261293]
[1728847880495,0.18857944,62678.0,62677.0,0.227617]
[1728847881419,0.30152688,62678.0,62677.0,0.227617]
[1728847883099,0.30152688,62678.0,62677.0,0.068069]
[1728847883551,0.32651874,62678.0,62677.0,0.227617]
[1728847884050,0.32651874,62678.0,62677.0,0.181597]
[1728847884561,0.32651874,62678.0,62677.0,0.188597]
[1728847884781,0.32651874,62678.0,62677.0,0.177597]
[1728847885273,0.32650292,62678.0,62677.0,0.183597]
[1728847885966,0.32650292,62678.0,62677.0,0.170597]
[1728847886173,0.32650292,62678.0,62677.0,0.011049]
[1728847886393,0.32650292,62678.0,62677.0,0.014049]
[1728847886637,0.32650292,62678.0,62677.0,0.011049]
[1728847886863,0.48804792,62678.0,62677.0,0.011049]
[1728847887126,0.48804792,62678.0,62677.0,0.016049]
[1728847887581,0.48604792,62678.0,62677.0,0.011049]
[1728847888047,0.65127193,62678.0,62677.0,0.011049]
[1728847889003,0.63630466,62678.0,62677.0,0.011049]
[1728847889253,0.65125988,62678.0,62677.0,0.011049]
[1728847890424,0.62626802,62678.0,62677.0,0.011049]
[1728847893409,0.65126121,62678.0,62677.0,0.011049]
[1728847896612,0.63630599,62678.0,62677.0,0.011049]
[1728847896846,0.65124833,62678.0,62677.0,0.011049]
[1728847900378,0.62625514,62678.0,62677.0,0.011049]
[1728847900605,0.62625478,62678.0,62677.0,0.011049]
[1728847903357,0.65124756,62678.0,62677.0,0.011049]
[1728847904432,0.63630558,62678.0,62677.0,0.011049]
[1728847904637,0.65125322,62678.0,62677.0,0.011049]
[1728847908550,0.49172107,62678.0,62677.0,0.011049]
[1728847908783,0.65126607,62678.0,62677.0,0.011049]
[1728847910456,0.62627329,62678.0,62677.0,0.011049]
[1728847914774,0.65126618,62678.0,62677.0,0.011049]
[1728847916107,0.49172118,62678.0,62677.0,0.011049]
[1728847916357,0.65126618,62678.0,62677.0,0.011049]
[1728847920488,0.62627329,62678.0,62677.0,0.011049]
[1728847922890,0.62629847,62678.0,62677.0,0.011049]
[1728847923552,0.65129114,62678.0,62677.0,0.011049]
[1728847924489,0.69917036,62678.0,62677.0,0.011049]
[1728847924937,0.65129114,62678.0,62677.0,0.011049]
[1728847925153,0.69918283,62678.0,62677.0,0.011049]
[1728847925380,0.72310997,62678.0,62677.0,0.011049]
[1728847926273,0.65129114,62678.0,62677.0,0.011049]
[1728847927365,0.74704958,62678.0,62677.0,0.011049]
[1728847927579,0.65129114,62678.0,62677.0,0.011049]
[1728847928013,0.49174614,62678.0,62677.0,0.011049]
[1728847928509,0.74704958,62678.0,62677.0,0.011049]
[1728847928740,0.74716871,62678.0,62677.0,0.011049]
[1728847928964,0.65129114,62678.0,62677.0,0.011049]
[1728847929181,0.74716871,62678.0,62677.0,0.011049]
[1728847930317,0.72217604,62678.0,62677.0,0.011049]
[1728847930534,0.72217751,62678.0,62677.0,0.011049]
[1728847931407,0.56263251,62678.0,62677.0,0.011049]
[1728847931632,0.72217751,62678.0,62677.0,0.011049]
[1728847932328,0.72220512,62678.0,62677.0,0.011049]
[1728847933026,0.62629994,62678.0,62677.0,0.011049]
[1728847933481,0.65129278,62678.0,62677.0,0.011049]
[1728847934159,0.63630564,62678.0,62677.0,0.011049]
[1728847934383,0.65129453,62678.0,62677.0,0.011049]
[1728847936043,0.04398273,62678.0,62677.0,0.170597]
[1728847936286,0.11591335,62678.0,62677.0,0.170597]
[1728847936958,0.11191335,62678.0,62677.0,0.170597]
[1728847937182,0.11191335,62678.0,62677.0,0.173597]
[1728847937613,0.03998273,62678.0,62677.0,0.173597]
[1728847938103,0.03997961,62678.0,62677.0,0.173597]
[1728847940343,0.06293159,62678.0,62677.0,0.173597]
[1728847943039,0.01498677,62678.0,62677.0,0.173597]
[1728847943273,0.0629254,62678.0,62677.0,0.173597]
[1728847943775,0.01498677,62678.0,62677.0,0.173597]
[1728847944210,0.0629254,62678.0,62677.0,0.173597]
[1728847944666,0.01498677,62678.0,62677.0,0.173597]
[1728847945373,0.01497996,62678.0,62677.0,0.173597]
[1728847945615,0.06291859,62678.0,62677.0,0.173597]
[1728847946274,0.01497996,62678.0,62677.0,0.173597]
[1728847949096,1e-06,62678.0,62677.0,0.173597]
[1728847949378,1e-06,62678.0,62677.0,0.36663979]
[1728847949379,0.01497893,62678.0,62677.0,0.36663979]
[1728847949573,0.01497583,62678.0,62677.0,0.49192979]
[1728847949836,0.01497583,62678.0,62677.0,0.49692581]
[1728847950321,0.01497583,62678.0,62677.0,0.6501538]
[1728847950533,0.01497583,62678.0,62677.0,0.68530367]
[1728847950755,0.01497583,62678.0,62677.0,0.69730367]
[1728847951245,0.01497583,62678.0,62677.0,0.70229959]
[1728847951677,0.01497583,62678.0,62677.0,0.70029959]
[1728847952127,0.01497583,62678.0,62677.0,0.69029959]
[1728847952388,0.01497583,62678.0,62677.0,0.68530367]
[1728847952622,0.01497583,62678.0,62677.0,0.69930367]
[1728847953091,0.01497583,62678.0,62677.0,0.71330367]
[1728847959892,0.01497583,62678.0,62677.0,0.81330367]
[1728847960138,1e-06,62678.0,62677.0,0.81330367]
[1728847967864,1e-06,62678.0,62677.0,0.82028367]
[1728847968079,1e-06,62678.0,62677.0,0.93322646]
[1728847968771,1e-06,62678.0,62677.0,0.82028367]
[1728847969489,1e-06,62678.0,62677.0,0.98066676]
[1728847969707,1e-06,62679.0,62678.0,0.00698]
[1728847969948,1e-06,62679.0,62678.0,0.71136694]
[1728847970167,1e-06,62679.0,62678.0,0.70817675]
[1728847970393,1e-06,62679.0,62678.0,0.66073901]
[1728847970843,1e-06,62679.0,62678.0,0.72217675]
[1728847971070,1e-06,62679.0,62678.0,0.68773901]
[1728847971504,1e-06,62679.0,62678.0,0.68575901]
[1728847971748,1e-06,62679.0,62678.0,0.67373901]
[1728847972440,1e-06,62679.0,62678.0,0.66073901]
[1728847972662,1e-06,62679.0,62678.0,0.67373901]
[1728847972877,1e-06,62679.0,62678.0,0.66073901]
[1728847973104,1e-06,62679.0,62678.0,0.67473901]
[1728847973320,1e-06,62679.0,62678.0,0.67275901]
[1728847973539,1e-06,62679.0,62678.0,0.67473901]
[1728847973752,1e-06,62679.0,62678.0,0.68873901]
[1728847974180,1e-06,62679.0,62678.0,0.67473901]
[1728847974564,1e-06,62679.0,62678.0,0.68873901]
[1728847976172,1e-06,62679.0,62678.0,0.68675901]
[1728847976421,1e-06,62679.0,62678.0,0.68873901]
[1728847976893,1e-06,62679.0,62678.0,0.68675901]
[1728847977123,1e-06,62679.0,62678.0,0.8016818]
[1728847977568,0.000819,62693.0,62692.0,0.314499]
[1728847977821,0.000819,62693.0,62692.0,0.59185567]
[1728847978047,0.000819,62693.0,62692.0,0.5886658]
[1728847978523,0.000819,62693.0,62692.0,0.6650658]
[1728847978769,0.000819,62693.0,62692.0,0.7637658]
[1728847978993,0.000819,62693.0,62692.0,0.7767658]
[1728847979908,0.000819,62693.0,62692.0,0.7907658]
[1728847981996,0.000819,62693.0,62692.0,0.90370859]
[1728847982283,0.000819,62709.0,62708.0,0.159469]
[1728847982530,0.24042122,62713.0,62710.0,0.259464]
[1728847982776,0.24042122,62713.0,62710.0,0.478859]
[1728847982996,0.24042122,62713.0,62710.0,0.47567801]
[1728847983237,0.0005,62719.0,62710.0,0.47567801]
[1728847984161,0.0005,62719.0,62710.0,0.48967801]
[1728847984396,0.0005,62719.0,62710.0,0.50591285]
[1728847984881,0.0005,62719.0,62710.0,0.49191285]
[1728847985370,0.0005,62719.0,62710.0,0.50491285]
[1728847985817,0.0005,62719.0,62710.0,0.49191285]
[1728847986248,0.0005,62719.0,62710.0,0.51991285]
[1728847987373,0.0005,62719.0,62710.0,1.98065564]
[1728847987589,0.0005,62719.0,62710.0,1.98565564]
[1728847988071,0.0005,62719.0,62710.0,1.99783299]
[1728847988969,0.0005,62719.0,62710.0,1.99283299]
[1728847989191,0.0005,62719.0,62710.0,1.99783299]
[1728847989903,0.0005,62719.0,62710.0,1.96983299]
[1728847990113,0.0005,62719.0,62710.0,1.98383299]
[1728847990340,0.0005,62719.0,62710.0,1.99783299]
[1728847990568,0.0005,62719.0,62710.0,1.98383299]
[1728847990789,0.0005,62719.0,62710.0,1.99783299]
[1728847991463,0.0153617,62711.0,62710.0,1.98383299]
[1728847991692,0.0153617,62711.0,62710.0,2.08073299]
[1728847992397,0.0153617,62711.0,62710.0,2.08271299]
[1728847992637,7e-07,62711.0,62710.0,2.19565578]
[1728847992850,0.0005,62719.0,62718.0,0.397333]
[1728847993067,0.0005,62719.0,62718.0,0.78444259]
[1728847994207,0.0005,62719.0,62718.0,0.79844259]
[1728847994642,0.0005,62719.0,62718.0,0.6854998]
[1728847994873,0.0005,62719.0,62718.0,0.6994998]
[1728847999893,0.0005,62719.0,62718.0,0.51554977]
[1728848003172,0.0005,62719.0,62718.0,0.57943277]
[1728848006308,0.0154084,62719.0,62718.0,0.57943277]
[1728848006766,0.0154084,62719.0,62718.0,0.55643277]
[1728848007426,0.0392641,62719.0,62718.0,0.55643277]
[1728848009183,0.0154084,62719.0,62718.0,0.57943277]
[1728848009426,0.0154084,62719.0,62718.0,0.69237556]
[1728848009896,0.0005,62719.0,62718.0,0.69237556]
[1728848010380,0.01543117,62719.0,62718.0,0.69935556]
[1728848010613,0.0005,62719.0,62718.0,0.68535556]
[1728848010832,0.0005,62719.0,62718.0,0.69935556]
[1728848011050,0.0005,62719.0,62718.0,0.68535556]
[1728848011291,1e-06,62719.0,62718.0,0.68337556]
[1728848011543,0.082419,62733.0,62718.0,0.68337556]
[1728848011544,0.02388933,62730.0,62728.0,0.10198]
[1728848011767,0.000819,62733.0,62730.0,0.42734579]
[1728848011995,0.01503704,62731.0,62730.0,0.314403]
[1728848012233,0.01503704,62731.0,62730.0,0.31759077]
[1728848012466,0.24092122,62759.0,62751.0,0.15936]
[1728848012467,0.22755926,62752.0,62751.0,0.15936]
[1728848012763,0.25145243,62752.0,62751.0,0.35845917]
[1728848012986,0.02389317,62752.0,62751.0,0.35845917]
[1728848013223,0.02389317,62752.0,62751.0,0.19135]
[1728848013445,0.02389317,62752.0,62751.0,0.15936]
[1728848014347,0.02389317,62752.0,62751.0,0.16436]
[1728848014571,0.02389317,62752.0,62751.0,0.17236]
[1728848015036,0.02389317,62752.0,62751.0,0.16436]
[1728848015289,0.1728,62753.0,62752.0,0.159357]
[1728848015511,0.19665305,62753.0,62752.0,0.159357]
[1728848016845,0.19665305,62753.0,62752.0,0.163357]
[1728848017514,0.19665305,62753.0,62752.0,0.170357]
[1728848018414,0.19663812,62753.0,62752.0,0.170357]
[1728848019880,0.19745612,62753.0,62752.0,0.170357]
[1728848020817,0.19745612,62753.0,62752.0,0.202347]
[1728848021474,0.19745612,62753.0,62752.0,0.195347]
[1728848021693,0.19745612,62753.0,62752.0,0.198347]
[1728848021916,0.19745612,62753.0,62752.0,0.206347]
[1728848022132,0.19744492,62753.0,62752.0,0.199347]
[1728848022559,0.19744492,62753.0,62752.0,0.210347]
[1728848023247,0.19744492,62753.0,62752.0,0.37157101]
[1728848023248,0.02464492,62753.0,62752.0,0.37157101]
[1728848023465,0.000818,62753.0,62752.0,0.37157101]
[1728848023711,0.000818,62753.0,62752.0,0.73499223]
[1728848023943,0.000818,62753.0,62752.0,0.74218018]
[1728848024405,0.000818,62753.0,62752.0,0.9735814]
[1728848024634,0.000818,62753.0,62752.0,0.73316018]
[1728848024861,0.000818,62753.0,62752.0,0.57007101]
[1728848025091,0.000818,62753.0,62752.0,0.58407101]
[1728848025316,0.000818,62753.0,62752.0,0.57007101]
[1728848025546,0.000818,62753.0,62752.0,0.58407101]
[1728848026231,0.000818,62753.0,62752.0,0.55607101]
[1728848026673,0.000818,62753.0,62752.0,0.57007101]
[1728848026898,0.000818,62753.0,62752.0,0.47557101]
[1728848027127,0.000818,62753.0,62752.0,0.48957101]
[1728848027352,0.000818,62753.0,62752.0,0.65668018]
[1728848027563,0.000818,62753.0,62752.0,0.67068018]
[1728848027998,0.000818,62753.0,62752.0,0.65668018]
[1728848028217,0.000818,62753.0,62752.0,0.67068018]
[1728848029375,0.000818,62753.0,62752.0,0.9111014]
[1728848029588,0.000818,62753.0,62752.0,0.67068018]
[1728848031343,0.000818,62753.0,62752.0,0.67231618]
[1728848037946,0.000818,62753.0,62752.0,0.65831618]
[1728848038205,0.000818,62753.0,62752.0,0.67231618]
[1728848038966,0.000818,62753.0,62752.0,0.65831618]
[1728848039192,0.000818,62753.0,62752.0,0.67231618]
[1728848042567,0.01574219,62753.0,62752.0,0.67231618]
[1728848045530,0.01574776,62753.0,62752.0,0.67231618]
[1728848046083,0.01574776,62753.0,62752.0,0.9127374]
[1728848046337,0.01574776,62753.0,62752.0,0.50520701]
[1728848046546,0.01574776,62753.0,62752.0,0.67231618]
[1728848047026,0.000818,62753.0,62752.0,0.67231618]
[1728848051913,0.000818,62753.0,62752.0,0.65831618]
[1728848052162,0.000818,62753.0,62752.0,0.64431618]
[1728848052412,0.000818,62753.0,62752.0,0.67231618]
[1728848053152,0.000818,62753.0,62752.0,0.68631618]
[1728848053391,0.01577491,62753.0,62752.0,0.68631618]
[1728848054375,0.01577491,62753.0,62752.0,0.51920701]
[1728848054606,0.01577491,62753.0,62752.0,0.68631618]
[1728848055857,0.01577491,62753.0,62752.0,0.63170897]
[1728848056085,0.01577491,62753.0,62752.0,0.51920701]
[1728848057763,0.01577491,62753.0,62752.0,0.49620701]
[1728848058487,0.01577491,62753.0,62752.0,0.48220701]
[1728848058722,0.01577491,62753.0,62752.0,0.45420701]
[1728848058969,0.01577491,62753.0,62752.0,0.48220701]
[1728848059469,0.01577653,62753.0,62752.0,0.320983]
[1728848059697,0.01577653,62753.0,62752.0,0.334983]
[1728848059928,0.01577653,62753.0,62752.0,0.306983]
[1728848060162,0.01577653,62753.0,62752.0,0.318983]
[1728848060388,0.01577653,62753.0,62752.0,0.306983]
[1728848060852,0.01577653,62753.0,62752.0,0.292983]
[1728848061332,0.01577653,62753.0,62752.0,0.305983]
[1728848061871,0.01577653,62753.0,62752.0,0.315983]
[1728848071054,0.09596874,62753.0,62752.0,0.215983]
[1728848072379,0.19266874,62753.0,62752.0,0.183993]
[1728848075353,0.19265684,62753.0,62752.0,0.183993]
[1728848076049,0.359744,62753.0,62752.0,0.183993]
[1728848076297,0.359744,62753.0,62752.0,0.024636]
[1728848076982,0.19265684,62753.0,62752.0,0.011636]
[1728848077473,0.19265684,62753.0,62752.0,0.019636]
[1728848077703,0.19265684,62753.0,62752.0,0.178993]
[1728848077930,0.19265684,62753.0,62752.0,0.160993]
[1728848078145,0.19265684,62753.0,62752.0,0.165993]
[1728848078401,0.19265684,62753.0,62752.0,0.160993]
[1728848079253,0.19265684,62753.0,62752.0,0.163993]
[1728848079678,0.19265684,62753.0,62752.0,0.160993]
[1728848079883,0.19265684,62753.0,62752.0,0.165993]
[1728848081223,0.19265684,62753.0,62752.0,0.167993]
[1728848083431,0.21761883,62753.0,62752.0,0.167993]
[1728848087278,0.20267999,62753.0,62752.0,0.167993]
[1728848087522,0.21761321,62753.0,62752.0,0.167993]
[1728848090410,0.19265122,62753.0,62752.0,0.167993]
[1728848094104,0.01575122,62753.0,62752.0,0.167993]
[1728848099393,0.01577313,62753.0,62752.0,0.167993]
[1728848102142,0.01577911,62753.0,62752.0,0.167993]
[1728848103182,0.01577911,62753.0,62752.0,0.17298294]
[1728848103418,0.01577911,62753.0,62752.0,0.17298291]
[1728848103898,0.01577911,62753.0,62752.0,0.43420692]
[1728848104135,0.01577911,62753.0,62752.0,0.51380692]
[1728848104368,0.01577911,62753.0,62752.0,0.54579692]
[1728848105045,0.01577911,62753.0,62752.0,0.54079692]
[1728848105264,0.01577911,62753.0,62752.0,0.54679692]
[1728848105932,0.01577911,62753.0,62752.0,0.54079692]
[1728848106155,0.000818,62753.0,62752.0,0.53879692]
[1728848106375,0.01576251,62753.0,62752.0,0.53879668]
[1728848106851,0.01576251,62753.0,62752.0,0.63539668]
[1728848107073,0.01576251,62753.0,62752.0,0.63739668]
[1728848107309,0.000818,62753.0,62752.0,0.63539668]
[1728848107540,0.000818,62753.0,62752.0,0.67237668]
[1728848107763,0.000818,62753.0,62752.0,0.67838701]
[1728848107991,0.000818,62753.0,62752.0,0.90159265]
[1728848108429,0.000818,62753.0,62752.0,0.75451848]
[1728848108856,0.000818,62753.0,62752.0,0.66938701]
[1728848109088,0.000818,62753.0,62752.0,0.75253848]
[1728848109376,0.000818,62753.0,62752.0,0.69760182]
[1728848110465,0.000818,62753.0,62752.0,0.74503206]
[1728848110685,0.000818,62753.0,62752.0,0.69760182]
[1728848111336,0.000818,62753.0,62752.0,0.76873329]
[1728848111793,0.000818,62753.0,62752.0,0.74502336]
[1728848112243,0.000818,62753.0,62752.0,0.69760182]
[1728848112468,0.000818,62753.0,62752.0,0.74501572]
[1728848112684,0.000818,62753.0,62752.0,0.69760182]
[1728848113642,0.000818,62753.0,62752.0,0.74501496]
[1728848114132,0.000818,62753.0,62752.0,0.69760182]
[1728848114363,0.000818,62753.0,62752.0,0.81515627]
[1728848114590,0.000818,62753.0,62752.0,0.702591]
[1728848115052,0.000818,62753.0,62752.0,0.688591]
[1728848115274,0.000818,62753.0,62752.0,0.702591]
[1728848116211,0.000818,62753.0,62752.0,0.688591]
[1728848116432,0.000818,62753.0,62752.0,0.702591]
[1728848116675,0.000818,62753.0,62752.0,0.674591]
[1728848116899,0.000818,62753.0,62752.0,0.688591]
[1728848117123,0.000818,62753.0,62752.0,0.702591]
[1728848120723,0.000818,62753.0,62752.0,0.81515627]
[1728848123340,0.000818,62753.0,62752.0,0.81515627]
[1728848128165,0.000818,62753.0,62752.0,0.82154127]
[1728848129248,0.000818,62753.0,62752.0,0.82154125]
[1728848134486,0.0157747,62753.0,62752.0,0.82154125]
[1728848134719,0.01577467,62753.0,62752.0,0.82154125]
[1728848137157,0.01578062,62753.0,62752.0,0.82154125]
[1728848137629,0.000818,62753.0,62752.0,0.87106724]
[1728848137853,0.000818,62753.0,62752.0,0.86898566]
[1728848138085,0.000819,62756.0,62755.0,0.42690427]
[1728848138332,0.01578232,62756.0,62755.0,0.59311744]
[1728848138582,3.2e-07,62759.0,62758.0,0.319332]
[1728848138845,3.2e-07,62759.0,62758.0,0.98043776]
[1728848139081,3.2e-07,62759.0,62758.0,1.00415321]
[1728848139302,3.2e-07,62759.0,62758.0,1.00414037]
[1728848139532,3.2e-07,62759.0,62758.0,0.99915121]
[1728848140224,3.2e-07,62759.0,62758.0,1.01315121]
[1728848140467,3.2e-07,62759.0,62758.0,1.02714584]
[1728848140706,3.2e-07,62759.0,62758.0,0.89458682]
[1728848140928,3.2e-07,62759.0,62758.0,1.23827638]
[1728848141624,3.2e-07,62759.0,62758.0,1.22427638]
[1728848141859,3.2e-07,62759.0,62758.0,1.13371736]
[1728848142083,0.23624054,62772.0,62761.0,0.03199]
[1728848142309,0.23624054,62772.0,62771.0,0.40386427]
[1728848142576,0.0979,62774.0,62772.0,0.191296]
[1728848142803,0.0979,62774.0,62772.0,0.35252001]
[1728848144976,0.0979,62774.0,62772.0,0.36252001]
[1728848145209,0.0979,62774.0,62772.0,0.37552001]
[1728848145888,0.0979,62774.0,62772.0,0.36252001]
[1728848146111,0.0979,62774.0,62772.0,0.37552001]
[1728848146355,0.0979,62774.0,62772.0,0.36552001]
[1728848146582,0.0979,62774.0,62772.0,0.35252001]
[1728848147036,0.0979,62774.0,62772.0,0.36352001]
[1728848147037,0.0172427,62773.0,62772.0,0.36352001]
[1728848147261,0.0172427,62773.0,62772.0,0.37570418]
[1728848147953,0.0172427,62773.0,62772.0,0.38970418]
[1728848148909,0.0172427,62773.0,62772.0,0.45353718]
[1728848149143,0.0172427,62773.0,62772.0,0.29231317]
[1728848150515,0.03216975,62773.0,62772.0,0.29231317]
[1728848152240,0.03216975,62773.0,62772.0,0.26731317]
[1728848152491,0.0172427,62773.0,62772.0,0.28131317]
[1728848152728,0.03216975,62773.0,62772.0,0.29231317]
[1728848152969,0.03216975,62773.0,62772.0,0.28131317]
[1728848153210,0.03216975,62773.0,62772.0,0.29331317]
[1728848153907,0.03216975,62773.0,62772.0,0.27931317]
[1728848154384,0.03216975,62773.0,62772.0,0.29331317]
[1728848154907,0.03216975,62773.0,62772.0,0.27931317]
[1728848155149,0.03216975,62773.0,62772.0,0.28131317]
[1728848155377,0.03216975,62773.0,62772.0,0.29231317]
[1728848156974,0.03217026,62773.0,62772.0,0.29231317]
[1728848157421,0.03217026,62773.0,62772.0,0.27831317]
[1728848157789,0.03217026,62773.0,62772.0,0.28131317]
[1728848158244,0.03217026,62773.0,62772.0,0.27831317]
[1728848158447,0.03217026,62773.0,62772.0,0.28131317]
[1728848158649,0.03217026,62773.0,62772.0,0.29231317]
[1728848160527,0.03217026,62773.0,62772.0,0.27831317]
[1728848160751,0.03217026,62773.0,62772.0,0.29231317]
[1728848161203,0.03217026,62773.0,62772.0,0.27831317]
[1728848161625,0.03217026,62773.0,62772.0,0.28131317]
[1728848162058,0.03217026,62773.0,62772.0,0.29231317]
[1728848162286,0.03217026,62773.0,62772.0,0.28131317]
[1728848162708,0.03217026,62773.0,62772.0,0.29231317]
[1728848164720,0.03217026,62773.0,62772.0,0.27831317]
[1728848164964,0.03217026,62773.0,62772.0,0.26731317]
[1728848165182,0.03217026,62773.0,62772.0,0.29331317]
[1728848169356,0.03217026,62773.0,62772.0,0.29495117]
[1728848170438,0.03217026,62773.0,62772.0,0.28295117]
[1728848170647,0.03217026,62773.0,62772.0,0.26895117]
[1728848170856,0.03217026,62773.0,62772.0,0.29495117]
[1728848171060,0.03217026,62773.0,62772.0,0.28295117]
[1728848171483,0.03217026,62773.0,62772.0,0.28095117]
[1728848171923,0.03220376,62773.0,62772.0,0.28095117]
[1728848172179,0.03220376,62773.0,62772.0,0.268767]
[1728848172628,0.03220376,62773.0,62772.0,0.282767]
[1728848173570,0.20230273,62773.0,62772.0,0.218934]
[1728848174266,0.20230273,62773.0,62772.0,0.192934]
[1728848174478,0.20230273,62773.0,62772.0,0.201934]
[1728848174678,0.20230273,62773.0,62772.0,0.207934]
[1728848174889,0.20240273,62773.0,62772.0,0.207934]
[1728848176181,0.20240273,62773.0,62772.0,0.048628]
[1728848176404,0.20240273,62773.0,62772.0,0.016638]
[1728848176838,0.20240273,62773.0,62772.0,0.175944]
[1728848177074,0.20240273,62773.0,62772.0,0.166944]
[1728848177277,0.20240273,62773.0,62772.0,0.169944]
[1728848177494,0.20240273,62773.0,62772.0,0.163944]
[1728848178154,0.03230273,62773.0,62772.0,0.32516801]
[1728848178396,0.03230273,62773.0,62772.0,0.42516801]
[1728848179056,0.03230273,62773.0,62772.0,0.43411714]
[1728848179319,0.03230273,62773.0,62772.0,0.43711714]
[1728848179755,0.03230273,62773.0,62772.0,0.43411714]
[1728848180176,0.03230273,62773.0,62772.0,0.44211714]
[1728848180390,0.03220273,62773.0,62772.0,0.44711714]
[1728848182121,0.03220273,62773.0,62772.0,0.47905714]
[1728848182548,0.03220273,62773.0,62772.0,0.49529936]
[1728848182765,0.03220273,62773.0,62772.0,0.66299936]
[1728848183003,0.03220273,62773.0,62772.0,2.23105308]
[1728848183256,1e-06,62779.0,62778.0,0.159291]
[1728848183516,0.0001,62781.0,62778.0,0.159291]
[1728848183517,0.24042122,62797.0,62796.0,0.159245]
[1728848183953,0.0249489,62800.0,62798.0,0.15924]
[1728848184606,0.01937889,62799.0,62798.0,0.15924]
[1728848186978,0.01937889,62799.0,62798.0,0.16424]
[1728848187184,0.01937889,62799.0,62798.0,0.16624]
[1728848187622,0.01337889,62799.0,62798.0,0.16624]
[1728848188935,0.01337889,62799.0,62798.0,0.007]
[1728848189834,0.01337889,62799.0,62798.0,0.15924]
[1728848190492,0.01337889,62799.0,62798.0,0.16124]
[1728848190937,0.005,62805.0,62798.0,0.002]
[1728848191159,0.159225,62804.0,62798.0,0.161239]
[1728848191791,0.159225,62804.0,62798.0,0.159239]
[1728848192020,0.1691,62802.0,62798.0,0.159239]
[1728848192236,0.000819,62799.0,62798.0,0.159239]
[1728848193373,0.02576235,62799.0,62798.0,0.159239]
[1728848193591,0.02576235,62799.0,62798.0,0.160239]
[1728848194032,0.000819,62799.0,62798.0,0.35340301]
[1728848194694,0.000819,62799.0,62798.0,0.35440301]
[1728848194904,0.000819,62799.0,62798.0,0.35240301]
[1728848195111,0.000819,62799.0,62798.0,0.55900301]
[1728848195329,0.000819,62799.0,62798.0,0.68256828]
[1728848195531,0.000819,62799.0,62798.0,0.56600301]
[1728848195816,0.000819,62799.0,62798.0,0.67856828]
[1728848196025,0.000819,62799.0,62798.0,0.69256828]
[1728848196463,0.000819,62799.0,62798.0,0.67856828]
[1728848196671,0.000819,62799.0,62798.0,0.68156828]
[1728848196897,0.000819,62799.0,62798.0,0.69556828]
[1728848197102,0.000819,62799.0,62798.0,0.68156828]
[1728848197511,0.000819,62799.0,62798.0,0.70738002]
[1728848198115,0.000819,62799.0,62798.0,0.76160184]
[1728848199289,0.000819,62799.0,62798.0,0.59481475]
[1728848199505,0.000819,62799.0,62798.0,0.48040301]
[1728848202015,0.000819,62799.0,62798.0,0.46640301]
[1728848202473,0.000819,62799.0,62798.0,0.48040301]
[1728848203152,0.000819,62799.0,62798.0,0.46640301]
[1728848203376,0.000819,62799.0,62798.0,0.48040301]
[1728848205013,0.000819,62799.0,62798.0,0.54420801]
[1728848205243,0.000819,62799.0,62798.0,0.54584601]
[1728848208087,0.000819,62799.0,62798.0,0.62764601]
[1728848208788,0.000819,62799.0,62798.0,0.65064601]
[1728848209706,0.000819,62799.0,62798.0,0.74744601]
[1728848214804,0.000819,62802.0,62801.0,0.48596009]
[1728848215024,0.000819,62802.0,62801.0,0.7273841]
[1728848215219,0.000819,62802.0,62801.0,0.8190841]
[1728848216217,0.24042122,62811.0,62810.0,0.19872709]
[1728848216445,0.0005,62819.0,62814.0,0.19114]
[1728848216673,0.0005,62819.0,62814.0,0.45236401]
[1728848216674,0.01572229,62815.0,62814.0,0.45236401]
[1728848217599,0.01572229,62815.0,62814.0,0.6421511]
[1728848218050,0.000819,62815.0,62814.0,0.6421511]
[1728848218245,0.000819,62815.0,62814.0,0.6561511]
[1728848218784,0.000819,62815.0,62814.0,0.47840977]
[1728848219022,0.01571412,62815.0,62814.0,0.47840977]
[1728848219745,0.01571412,62815.0,62814.0,0.49240977]
[1728848223012,0.01571412,62815.0,62814.0,0.48036401]
[1728848226956,0.12803099,62815.0,62814.0,0.21914]
[1728848227160,0.30713099,62815.0,62814.0,0.028]
[1728848227379,0.46632799,62815.0,62814.0,0.028]
[1728848227672,0.35401112,62815.0,62814.0,0.028]
[1728848227882,0.36165276,62815.0,62814.0,0.028]
[1728848228816,0.0964,62812.0,62809.0,0.159212]
[1728848229048,0.0964,62811.0,62808.0,0.159214]
[1728848229282,0.16682485,62808.0,62802.0,0.03194]
[1728848229503,0.16682485,62808.0,62806.0,0.24042122]
[1728848229504,0.01490891,62807.0,62806.0,0.24042122]
[1728848229727,0.01490891,62807.0,62803.0,0.318453]
[1728848229952,0.01490891,62806.0,62803.0,0.318453]
[1728848230187,0.1791,62809.0,62805.0,0.159222]
[1728848230421,0.01490906,62808.0,62803.0,0.159226]
[1728848230641,0.01490906,62808.0,62802.0,0.033578]
[1728848230642,0.01490906,62807.0,62806.0,0.007]
[1728848231311,0.01490906,62807.0,62806.0,0.16622]
[1728848231575,0.11130906,62807.0,62806.0,0.007]
[1728848231770,0.11130906,62807.0,62804.0,0.159224]
[1728848232004,0.01490906,62806.0,62803.0,0.163227]
[1728848232264,0.0964,62807.0,62805.0,0.005]
[1728848232493,0.36083281,62806.0,62805.0,0.005]
[1728848232737,0.36083281,62806.0,62802.0,0.001638]
[1728848232738,0.0827,62805.0,62802.0,0.001638]
[1728848232960,0.27253496,62804.0,62802.0,0.001638]
[1728848233157,0.18173281,62803.0,62802.0,0.001638]